lending/lending_fUSD_20250429
["ID","MTS","AMOUNT","RATE_DAILY","PERIOD"]
[359334400,1745934643317,-522.40456391,0.00027509,2]
[359334403,1745934643327,-470.0,0.00027509,2]
[359334407,1745934643335,-557.9,0.00027509,2]
[359334410,1745934643344,-470.0,0.00027509,2]
[359334413,1745934643354,-777.31,0.00027509,2]
[359334416,1745934643363,-470.0,0.00027509,2]
[359334419,1745934643373,-470.0,0.00027509,2]
[359334422,1745934643382,-470.0,0.00027509,2]
[359334425,1745934643394,-470.0,0.00027509,2]
[359334428,1745934643405,-470.0,0.00027509,2]
[359334431,1745934643415,-470.0,0.00027509,2]
[359334435,1745934643425,-470.0,0.00027509,2]
[359334438,1745934643435,-470.0,0.00027509,2]
[359334440,1745934643444,-470.0,0.00027509,2]
[359334445,1745934643454,-470.0,0.00027509,2]
[359334447,1745934643464,-470.0,0.00027509,2]
[359334450,1745934643473,-470.0,0.00027509,2]
[359334452,1745934643483,-158.06644379,0.00027509,2]
[359334454,1745934643493,-470.0,0.00027509,2]
[359334456,1745934643502,-470.0,0.00027509,2]
[359334458,1745934643512,-470.0,0.00027509,2]
[359334460,1745934643521,-332.02946774,0.00027509,2]
[359334462,1745934643532,-470.0,0.00027509,2]
[359334464,1745934643542,-470.0,0.00027509,2]
[359334466,1745934643551,-470.0,0.00027509,2]
[359334468,1745934643561,-470.0,0.00027509,2]
[359334470,1745934643571,-470.0,0.00027509,2]
[359334472,1745934643581,-470.0,0.00027509,2]
[359334474,1745934643590,-300.0,0.00027509,2]
[359334476,1745934643599,-470.0,0.00027509,2]
[359334478,1745934643609,-470.0,0.00027509,2]
[359334480,1745934643618,-470.0,0.00027509,2]
[359334482,1745934643628,-939.99,0.00027509,2]
[359334484,1745934643637,-470.0,0.00027509,2]
[359334486,1745934643647,-470.0,0.00027509,2]
[359334488,1745934643657,-470.0,0.00027509,2]
[359334490,1745934643667,-470.0,0.00027509,2]
[359334492,1745934643677,-500.0,0.00027509,2]
[359334494,1745934643687,-470.0,0.00027509,2]
[359334496,1745934643696,-470.0,0.00027509,2]
[359334498,1745934643706,-470.0,0.00027509,2]
[359334500,1745934643715,-470.0,0.00027509,2]
[359334502,1745934643725,-470.0,0.00027509,2]
[359334504,1745934643734,-470.0,0.00027509,2]
[359334506,1745934643744,-369.18002552,0.00027509,2]
[359334508,1745934643754,-470.0,0.00027509,2]
[359334510,1745934643764,-470.0,0.00027509,2]
[359334512,1745934643774,-150.0,0.00027509,2]
[359334514,1745934643784,-470.0,0.00027509,2]
[359334516,1745934643793,-470.0,0.00027509,2]
[359334518,1745934643803,-470.0,0.00027509,2]
[359334520,1745934643813,-470.0,0.00027509,2]
[359334522,1745934643822,-470.0,0.00027509,2]
[359334525,1745934643832,-470.0,0.00027509,2]
[359334527,1745934643841,-470.0,0.00027509,2]
[359334529,1745934643851,-470.0,0.00027509,2]
[359334531,1745934643860,-470.0,0.00027509,2]
[359334533,1745934643870,-442.26468506,0.00027509,2]
[359334535,1745934643879,-410.7479045,0.00027509,2]
[359334537,1745934643889,-470.0,0.00027509,2]
[359334539,1745934643898,-470.0,0.00027509,2]
[359334541,1745934643908,-470.0,0.00027509,2]
[359334543,1745934643918,-737.37,0.00027509,2]
[359334545,1745934643928,-470.0,0.00027509,2]
[359334547,1745934643937,-524.98,0.00027509,2]
[359334550,1745934643947,-470.0,0.00027509,2]
[359334553,1745934643956,-895.58,0.00027509,2]
[359334555,1745934643966,-470.0,0.00027509,2]
[359334557,1745934643975,-599.39205387,0.00027509,2]
[359334559,1745934643985,-470.0,0.00027509,2]
[359334561,1745934643994,-470.0,0.00027509,2]
[359334563,1745934644003,-470.0,0.00027509,2]
[359334565,1745934644013,-470.0,0.00027509,2]
[359334567,1745934644022,-495.45,0.00027509,2]
[359334569,1745934644031,-1242.09,0.00027509,2]
[359334572,1745934644042,-470.0,0.00027509,2]
[359334575,1745934644052,-470.0,0.00027509,2]
[359334577,1745934644062,-470.0,0.00027509,2]
[359334579,1745934644072,-366.26452336,0.00027509,2]
[359334581,1745934644081,-470.0,0.00027509,2]
[359334583,1745934644091,-470.0,0.00027509,2]
[359334585,1745934644101,-257.83408972,0.00027509,2]
[359334587,1745934644112,-470.0,0.00027509,2]
[359334589,1745934644122,-470.0,0.00027509,2]
[359334591,1745934644131,-470.0,0.00027509,2]
[359334593,1745934644141,-112.51599077,0.00027509,2]
[359334598,1745934644176,-357.48400923,0.00027509,2]
[359334600,1745934644187,-470.0,0.00027509,2]
[359334602,1745934644197,-470.0,0.00027509,2]
[359334604,1745934644206,-470.0,0.00027509,2]
[359334606,1745934644216,-500.0,0.00027509,2]
[359334608,1745934644225,-175.74550036,0.00027509,2]
[359334610,1745934644234,-470.0,0.00027509,2]
[359334612,1745934644243,-470.0,0.00027509,2]
[359334614,1745934644254,-476.33,0.00027509,2]
[359334616,1745934644265,-470.0,0.00027509,2]
[359334618,1745934644274,-470.0,0.00027509,2]
[359334620,1745934644284,-294.78604365,0.00027509,2]
[359334621,1745934644294,-470.0,0.00027509,2]
[359334622,1745934644304,-470.0,0.00027509,2]
[359334623,1745934644314,-470.0,0.00027509,2]
[359334624,1745934644323,-470.0,0.00027509,2]
[359334625,1745934644333,-470.0,0.00027509,2]
[359334626,1745934644343,-482.04,0.00027509,2]
[359334627,1745934644353,-470.0,0.00027509,2]
[359334628,1745934644363,-470.0,0.00027509,2]
[359334629,1745934644372,-554.57,0.00027509,2]
[359334630,1745934644382,-470.0,0.00027509,2]
[359334631,1745934644392,-470.0,0.00027509,2]
[359334632,1745934644402,-534.42,0.00027509,2]
[359334633,1745934644413,-470.0,0.00027509,2]
[359334634,1745934644423,-470.0,0.00027509,2]
[359334635,1745934644433,-470.0,0.00027509,2]
[359334637,1745934644444,-470.0,0.00027509,2]
[359334639,1745934644454,-470.0,0.00027509,2]
[359334641,1745934644464,-400.0,0.00027509,2]
[359334644,1745934644478,-470.0,0.00027509,2]
[359334646,1745934644488,-470.0,0.00027509,2]
[359334648,1745934644498,-470.0,0.00027509,2]
[359334650,1745934644508,-470.0,0.00027509,2]
[359334652,1745934644517,-459.89002877,0.00027509,2]
[359334654,1745934644528,-799.3,0.00027509,2]
[359334656,1745934644538,-470.0,0.00027509,2]
[359334658,1745934644549,-470.0,0.00027509,2]
[359334660,1745934644558,-470.0,0.00027509,2]
[359334662,1745934644568,-470.0,0.00027509,2]
[359334664,1745934644577,-470.0,0.00027509,2]
[359334666,1745934644586,-470.0,0.00027509,2]
[359334667,1745934644596,-728.08,0.00027509,2]
[359334668,1745934644605,-470.0,0.00027509,2]
[359334669,1745934644615,-552.33,0.00027509,2]
[359334670,1745934644625,-470.0,0.00027509,2]
[359334671,1745934644635,-470.0,0.00027509,2]
[359334672,1745934644645,-500.0,0.00027509,2]
[359334673,1745934644655,-203.849,0.00027523,16]
[359334674,1745934644664,-1634.143,0.00027523,16]
[359334675,1745934644674,-200.0,0.00027523,2]
[359334676,1745934644684,-215.0738,0.00027533,2]
[359334677,1745934644694,-500.0,0.00027573,5]
[359334678,1745934644705,-545.64968288,0.00027591,2]
[359334679,1745934644714,-6450.82934749,0.00027592,2]
[359334680,1745934644728,-308.6189802,0.00027592,2]
[359334681,1745934644740,-3823.96203384,0.00027592,2]
[359334682,1745934644783,-1392.67934983,0.00027592,2]
[359334683,1745934644795,-2920.38498352,0.00027592,2]
[359334687,1745934644821,-5318.39,0.00027508,2]
[359334689,1745934644831,-3056.49181761,0.00027592,2]
[359334831,1745934646113,-11682.47711031,0.00027592,2]
[359334833,1745934646122,-1000.0,0.000276,2]
[359334835,1745934646131,-470.0,0.00027602,2]
[359334837,1745934646140,-470.0,0.00027602,2]
[359334839,1745934646150,-5128.81,0.00027602,2]
[359334841,1745934646161,-470.0,0.00027602,2]
[359334843,1745934646170,-470.0,0.00027602,2]
[359334846,1745934646181,-1329.34,0.00027602,2]
[359334848,1745934646190,-470.0,0.00027602,2]
[359334850,1745934646200,-470.0,0.00027602,2]
[359334852,1745934646210,-1419.03,0.00027602,2]
[359334854,1745934646220,-470.0,0.00027602,2]
[359334857,1745934646229,-542.5,0.00027602,2]
[359334860,1745934646239,-470.0,0.00027602,2]
[359334863,1745934646248,-470.0,0.00027602,2]
[359334865,1745934646257,-470.0,0.00027602,2]
[359334867,1745934646267,-470.0,0.00027602,2]
[359334869,1745934646276,-569.43,0.00027602,2]
[359334871,1745934646285,-470.0,0.00027602,2]
[359334872,1745934646294,-470.0,0.00027602,2]
[359334875,1745934646304,-638.0,0.00027602,2]
[359334877,1745934646313,-470.0,0.00027602,2]
[359334880,1745934646323,-500.0,0.00027604,2]
[359334882,1745934646333,-726.8493469,0.00027613,2]
[359334883,1745934646343,-292.81380828,0.00027633,2]
[359334885,1745934646352,-236.96904725,0.00027643,2]
[359334887,1745934646361,-330.45604121,0.00027664,2]
[359334890,1745934646375,-1187.71524799,0.000277,3]
[359334923,1745934646682,-470.0,0.00027508,2]
[359334925,1745934646694,-947.44236092,0.000277,3]
[359334927,1745934646704,-151.0,0.00027712,7]
[359334929,1745934646713,-310.932838,0.00027712,7]
[359334931,1745934646723,-310.932838,0.00027712,7]
[359334933,1745934646733,-151.0,0.00027712,7]
[359334935,1745934646742,-151.0,0.00027712,7]
[359334937,1745934646752,-151.0,0.00027712,7]
[359334939,1745934646761,-151.0,0.00027712,7]
[359334941,1745934646771,-151.0,0.00027712,7]
[359334943,1745934646780,-151.0,0.00027712,7]
[359334945,1745934646790,-483.15395275,0.00027712,2]
[359334947,1745934646799,-5209.55867705,0.00027712,2]
[359334953,1745934646850,-4003.6709366,0.00027712,2]
[359334956,1745934646870,-300.55,0.00027712,2]
[359335130,1745934672680,177.2810629,0.00026326,4]
[359335131,1745934717188,177.2810629,0.00026326,4]
[359335132,1745934722341,200.0,0.00028563,117]
[359335133,1745934722444,200.0,0.00026069,117]
[359335134,1745934762356,177.2810629,0.00026326,4]
[359335135,1745935136035,198.0,0.00036986,60]
[359335136,1745935372871,391.0,0.00036986,60]
[359335143,1745935831892,-151.0,0.00022396,2]
[359335144,1745935831901,-151.0,0.00022418,2]
[359335145,1745935831911,-79.7991848,0.00022568,2]
[359335146,1745935831950,-71.2008152,0.00022568,2]
[359335147,1745935831959,-151.0,0.00022577,2]
[359335148,1745935831968,-151.0,0.00022585,2]
[359335149,1745935831978,-288.17,0.00024644,2]
[359335150,1745935831988,-250.0,0.00025594,2]
[359335151,1745935831997,-207.4,0.00026277,2]
[359335152,1745935832007,-33.81498453,0.00026287,2]
[359335153,1745935832066,-1479.54560526,0.00026287,2]
[359335154,1745935832183,-486.63941021,0.00026287,2]
[359335155,1745935832192,-1000.0,0.00026431,2]
[359335156,1745935832202,-800.0,0.000265,2]
[359335157,1745935832212,-532.91,0.00026624,2]
[359335158,1745935832221,-288.17,0.00026908,2]
[359335159,1745935832231,-1200.0,0.00027152,2]
[359335160,1745935832240,-351.69,0.00027153,2]
[359335161,1745935832250,-351.69,0.00027153,2]
[359335162,1745935832260,-351.69,0.00027153,2]
[359335163,1745935832269,-351.69,0.00027153,2]
[359335164,1745935832279,-348.98,0.00027153,2]
[359335165,1745935832289,-150.0,0.000272,2]
[359335166,1745935832298,-351.69,0.000272,2]
[359335167,1745935832307,-152.02,0.00027397,2]
[359335169,1745935832317,-274.06,0.00027397,2]
[359335171,1745935832326,-1265.81770368,0.00027407,2]
[359335173,1745935832335,-413.78626266,0.00027408,2]
[359335174,1745935832345,-1515.15424056,0.00027408,2]
[359335175,1745935832354,-199.93840045,0.00027408,2]
[359335176,1745935832364,-500.0,0.00027409,2]
[359335178,1745935832373,-2290.521137,0.00027431,2]
[359335180,1745935832382,-3630.863686,0.00027431,2]
[359335182,1745935832392,-435.68032314,0.00027497,2]
[359335184,1745935832402,-29575.1675413,0.00027498,2]
[359335186,1745935832411,-59150.3350826,0.00027499,2]
[359335188,1745935832422,-950.0,0.000275,3]
[359335190,1745935832431,-470.0,0.00027506,2]
[359335193,1745935832442,-470.0,0.00027506,2]
[359335195,1745935832452,-691.76,0.00027506,2]
[359335197,1745935832462,-556.95,0.00027506,2]
[359335199,1745935832472,-470.0,0.00027506,2]
[359335201,1745935832482,-689.36,0.00027506,2]
[359335203,1745935832492,-470.0,0.00027506,2]
[359335206,1745935832502,-470.0,0.00027506,2]
[359335209,1745935832512,-783.45,0.00027506,2]
[359335214,1745935832523,-470.0,0.00027506,2]
[359335216,1745935832533,-559.01,0.00027506,2]
[359335220,1745935832542,-612.41,0.00027506,2]
[359335223,1745935832553,-1690.17,0.00027506,2]
[359335226,1745935832563,-470.0,0.00027506,2]
[359335229,1745935832572,-470.0,0.00027506,2]
[359335232,1745935832582,-2000.0,0.00027506,2]
[359335234,1745935832591,-470.0,0.00027507,2]
[359335235,1745935832600,-470.0,0.00027507,2]
[359335237,1745935832610,-248.50206055,0.00027507,2]
[359335239,1745935832622,-470.0,0.00027507,2]
[359335241,1745935832632,-470.0,0.00027507,2]
[359335243,1745935832641,-470.0,0.00027507,2]
[359335245,1745935832651,-608.31,0.00027507,2]
[359335247,1745935832665,-560.83,0.00027507,2]
[359335249,1745935832675,-470.0,0.00027507,2]
[359335251,1745935832684,-559.99,0.00027507,2]
[359335253,1745935832695,-470.0,0.00027507,2]
[359335255,1745935832704,-500.21,0.00027507,2]
[359335256,1745935832714,-470.0,0.00027507,2]
[359335257,1745935832723,-470.0,0.00027507,2]
[359335258,1745935832734,-470.0,0.00027507,2]
[359335260,1745935832744,-898.39,0.00027507,2]
[359335261,1745935832753,-470.0,0.00027507,2]
[359335262,1745935832762,-470.0,0.00027507,2]
[359335263,1745935832772,-417.05775935,0.00027507,2]
[359335264,1745935832782,-470.0,0.00027507,2]
[359335265,1745935832792,-470.0,0.00027507,2]
[359335266,1745935832801,-470.0,0.00027507,2]
[359335267,1745935832811,-470.0,0.00027507,2]
[359335268,1745935832821,-470.0,0.00027507,2]
[359335269,1745935832830,-470.0,0.00027507,2]
[359335270,1745935832840,-250.0,0.00027507,2]
[359335271,1745935832849,-470.0,0.00027507,2]
[359335272,1745935832859,-470.0,0.00027507,2]
[359335273,1745935832868,-470.0,0.00027507,2]
[359335274,1745935832879,-470.0,0.00027507,2]
[359335275,1745935832889,-470.0,0.00027507,2]
[359335276,1745935832898,-470.0,0.00027507,2]
[359335277,1745935832908,-470.0,0.00027507,2]
[359335278,1745935832918,-470.0,0.00027507,2]
[359335279,1745935832927,-470.0,0.00027507,2]
[359335280,1745935832937,-470.0,0.00027507,2]
[359335281,1745935832946,-470.0,0.00027507,2]
[359335282,1745935832956,-497.68,0.00027507,2]
[359335283,1745935832966,-470.0,0.00027507,2]
[359335284,1745935832975,-355.08129011,0.00027507,2]
[359335285,1745935832985,-470.0,0.00027507,2]
[359335286,1745935832994,-529.99,0.00027507,2]
[359335287,1745935833004,-470.0,0.00027507,2]
[359335288,1745935833013,-470.0,0.00027507,2]
[359335289,1745935833022,-470.0,0.00027507,2]
[359335290,1745935833032,-470.0,0.00027507,2]
[359335291,1745935833041,-470.0,0.00027507,2]
[359335292,1745935833051,-649.96,0.00027507,2]
[359335293,1745935833060,-486.87,0.00027507,2]
[359335294,1745935833070,-470.0,0.00027507,2]
[359335295,1745935833080,-470.0,0.00027507,2]
[359335296,1745935833089,-470.0,0.00027507,2]
[359335297,1745935833099,-470.0,0.00027507,2]
[359335298,1745935833108,-470.0,0.00027507,2]
[359335299,1745935833119,-470.0,0.00027507,2]
[359335300,1745935833129,-470.0,0.00027507,2]
[359335301,1745935833138,-523.78,0.00027507,2]
[359335302,1745935833148,-470.0,0.00027507,2]
[359335303,1745935833159,-470.0,0.00027507,2]
[359335304,1745935833169,-553.1,0.00027507,2]
[359335305,1745935833178,-470.0,0.00027507,2]
[359335306,1745935833189,-470.0,0.00027507,2]
[359335307,1745935833199,-470.0,0.00027507,2]
[359335308,1745935833210,-495.4224475,0.00027507,2]
[359335309,1745935833220,-470.0,0.00027507,2]
[359335310,1745935833229,-470.0,0.00027507,2]
[359335311,1745935833239,-470.0,0.00027507,2]
[359335312,1745935833248,-470.0,0.00027507,2]
[359335313,1745935833257,-470.0,0.00027507,2]
[359335314,1745935833267,-564.65,0.00027507,2]
[359335315,1745935833277,-470.0,0.00027507,2]
[359335316,1745935833287,-512.86,0.00027507,2]
[359335317,1745935833297,-470.0,0.00027507,2]
[359335318,1745935833307,-777.31,0.00027507,2]
[359335319,1745935833317,-470.0,0.00027507,2]
[359335320,1745935833327,-470.0,0.00027507,2]
[359335321,1745935833337,-470.0,0.00027507,2]
[359335322,1745935833346,-656.09,0.00027507,2]
[359335323,1745935833356,-470.0,0.00027507,2]
[359335324,1745935833365,-470.0,0.00027507,2]
[359335325,1745935833374,-189.84,0.00027507,2]
[359335326,1745935833384,-562.62,0.00027507,2]
[359335327,1745935833394,-470.0,0.00027507,2]
[359335328,1745935833403,-470.0,0.00027507,2]
[359335329,1745935833413,-470.0,0.00027507,2]
[359335330,1745935833422,-605.5,0.00027507,2]
[359335331,1745935833432,-470.0,0.00027507,2]
[359335332,1745935833442,-470.0,0.00027507,2]
[359335333,1745935833451,-526.09,0.00027507,2]
[359335334,1745935833461,-823.03,0.00027507,2]
[359335335,1745935833471,-470.0,0.00027507,2]
[359335336,1745935833481,-592.15,0.00027507,2]
[359335337,1745935833491,-470.0,0.00027507,2]
[359335338,1745935833500,-470.0,0.00027507,2]
[359335339,1745935833510,-470.0,0.00027507,2]
[359335340,1745935833520,-470.0,0.00027507,2]
[359335341,1745935833530,-470.0,0.00027507,2]
[359335342,1745935833540,-470.0,0.00027507,2]
[359335343,1745935833550,-470.0,0.00027507,2]
[359335344,1745935833559,-470.0,0.00027507,2]
[359335345,1745935833569,-470.0,0.00027507,2]
[359335346,1745935833579,-470.0,0.00027507,2]
[359335347,1745935833588,-513.33,0.00027507,2]
[359335348,1745935833598,-470.0,0.00027507,2]
[359335349,1745935833608,-470.0,0.00027507,2]
[359335350,1745935833617,-470.0,0.00027507,2]
[359335351,1745935833627,-470.0,0.00027507,2]
[359335352,1745935833638,-504.01,0.00027507,2]
[359335353,1745935833647,-470.0,0.00027507,2]
[359335354,1745935833659,-470.0,0.00027507,2]
[359335355,1745935833669,-470.0,0.00027507,2]
[359335356,1745935833679,-470.0,0.00027507,2]
[359335357,1745935833688,-495.43,0.00027507,2]
[359335358,1745935833699,-470.0,0.00027507,2]
[359335359,1745935833709,-470.0,0.00027507,2]
[359335360,1745935833719,-470.0,0.00027507,2]
[359335361,1745935833729,-460.98097141,0.00027507,2]
[359335362,1745935833738,-470.0,0.00027507,2]
[359335363,1745935833749,-470.0,0.00027507,2]
[359335364,1745935833758,-470.0,0.00027507,2]
[359335365,1745935833768,-470.0,0.00027507,2]
[359335366,1745935833777,-470.0,0.00027507,2]
[359335367,1745935833787,-470.0,0.00027507,2]
[359335368,1745935833797,-470.0,0.00027507,2]
[359335369,1745935833806,-470.0,0.00027507,2]
[359335370,1745935833815,-470.0,0.00027507,2]
[359335371,1745935833826,-628.18,0.00027507,2]
[359335372,1745935833835,-470.0,0.00027507,2]
[359335373,1745935833844,-470.0,0.00027507,2]
[359335374,1745935833853,-470.0,0.00027507,2]
[359335375,1745935833863,-500.0,0.00027507,2]
[359335376,1745935833872,-470.0,0.00027507,2]
[359335377,1745935833882,-891.64,0.00027507,2]
[359335378,1745935833891,-470.0,0.00027507,2]
[359335379,1745935833901,-470.0,0.00027507,2]
[359335380,1745935833911,-470.0,0.00027507,2]
[359335381,1745935833920,-1701.6,0.00027507,2]
[359335382,1745935833929,-508.01,0.00027507,2]
[359335383,1745935833939,-470.0,0.00027507,2]
[359335384,1745935834168,-470.0,0.00027507,2]
[359335385,1745935834178,-470.0,0.00027507,2]
[359335386,1745935834188,-470.0,0.00027507,2]
[359335387,1745935834198,-470.0,0.00027507,2]
[359335388,1745935834207,-470.0,0.00027507,2]
[359335389,1745935834217,-470.0,0.00027507,2]
[359335390,1745935834227,-154.06081051,0.00027507,2]
[359335391,1745935834236,-470.0,0.00027507,2]
[359335392,1745935834246,-470.0,0.00027507,2]
[359335393,1745935834256,-470.0,0.00027507,2]
[359335394,1745935834265,-470.0,0.00027507,2]
[359335395,1745935834275,-470.0,0.00027507,2]
[359335396,1745935834285,-599.46,0.00027507,2]
[359335397,1745935834295,-470.0,0.00027507,2]
[359335398,1745935834310,-470.0,0.00027507,2]
[359335399,1745935834320,-470.0,0.00027507,2]
[359335400,1745935834329,-470.0,0.00027507,2]
[359335401,1745935834339,-470.0,0.00027507,2]
[359335402,1745935834349,-1379.79,0.00027507,2]
[359335403,1745935834359,-470.0,0.00027507,2]
[359335404,1745935834368,-470.0,0.00027507,2]
[359335405,1745935834377,-470.0,0.00027507,2]
[359335406,1745935834387,-470.0,0.00027507,2]
[359335407,1745935834397,-470.0,0.00027507,2]
[359335408,1745935834407,-470.0,0.00027507,2]
[359335409,1745935834416,-470.0,0.00027507,2]
[359335410,1745935834426,-458.11796814,0.00027507,2]
[359335411,1745935834436,-470.0,0.00027507,2]
[359335412,1745935834445,-470.0,0.00027507,2]
[359335413,1745935834455,-543.3,0.00027507,2]
[359335414,1745935834465,-470.0,0.00027507,2]
[359335415,1745935834475,-470.0,0.00027507,2]
[359335416,1745935834484,-470.0,0.00027507,2]
[359335417,1745935834494,-470.0,0.00027507,2]
[359335418,1745935834503,-470.0,0.00027507,2]
[359335419,1745935834513,-780.49,0.00027507,2]
[359335420,1745935834522,-484.04,0.00027507,2]
[359335421,1745935834531,-470.0,0.00027507,2]
[359335422,1745935834541,-470.0,0.00027507,2]
[359335423,1745935834551,-470.0,0.00027507,2]
[359335424,1745935834560,-704.76,0.00027507,2]
[359335425,1745935834570,-470.0,0.00027507,2]
[359335426,1745935834580,-470.0,0.00027507,2]
[359335427,1745935834589,-404.47457989,0.00027507,2]
[359335428,1745935834599,-470.0,0.00027507,2]
[359335429,1745935834608,-498.24,0.00027507,2]
[359335430,1745935834618,-470.0,0.00027507,2]
[359335431,1745935834627,-485.18,0.00027507,2]
[359335432,1745935834637,-124.96554964,0.00027507,2]
[359335433,1745935834993,-315.70364695,0.00027507,2]
[359335434,1745935835002,-1001.15,0.00027507,2]
[359335435,1745935835012,-470.0,0.00027507,2]
[359335436,1745935835022,-470.0,0.00027507,2]
[359335437,1745935835031,-470.0,0.00027507,2]
[359335438,1745935835041,-724.82,0.00027507,2]
[359335439,1745935835050,-470.0,0.00027507,2]
[359335440,1745935835059,-452.72487081,0.00027507,2]
[359335441,1745935835071,-277.02512919,0.00027507,2]
[359335442,1745935835080,-173.02642787,0.00027507,2]
[359335443,1745935835095,-296.97357213,0.00027507,2]
[359335444,1745935835105,-470.0,0.00027507,2]
[359335445,1745935835114,-257.26736312,0.00027507,2]
[359335448,1745935837999,-151.0,0.00022428,2]
[359335449,1745935838009,-9553.020418,0.00027506,2]
[359335450,1745935838018,-470.0,0.00027506,2]
[359335451,1745935838028,-212.73263688,0.00027507,2]
[359335452,1745935838037,-470.0,0.00027507,2]
[359335453,1745935838046,-1053.79,0.00027507,2]
[359335454,1745935838056,-470.0,0.00027507,2]
[359335455,1745935838065,-470.0,0.00027507,2]
[359335456,1745935838075,-470.0,0.00027507,2]
[359335457,1745935838085,-470.0,0.00027507,2]
[359335458,1745935838095,-470.0,0.00027507,2]
[359335459,1745935838105,-470.0,0.00027507,2]
[359335460,1745935838115,-470.0,0.00027507,2]
[359335461,1745935838124,-470.0,0.00027507,2]
[359335462,1745935838134,-470.0,0.00027507,2]
[359335463,1745935838143,-562.66,0.00027507,2]
[359335464,1745935838152,-470.0,0.00027507,2]
[359335465,1745935838162,-519.67,0.00027507,2]
[359335466,1745935838171,-470.0,0.00027507,2]
[359335467,1745935838181,-470.0,0.00027507,2]
[359335468,1745935838190,-470.0,0.00027507,2]
[359335469,1745935838199,-470.0,0.00027507,2]
[359335470,1745935838209,-470.0,0.00027507,2]
[359335471,1745935838220,-554.22,0.00027507,2]
[359335472,1745935838229,-470.0,0.00027507,2]
[359335473,1745935838239,-470.0,0.00027507,2]
[359335474,1745935838249,-470.0,0.00027507,2]
[359335475,1745935838260,-470.0,0.00027507,2]
[359335476,1745935838270,-470.0,0.00027507,2]
[359335477,1745935838280,-470.0,0.00027507,2]
[359335478,1745935838289,-585.85,0.00027507,2]
[359335479,1745935838298,-470.0,0.00027507,2]
[359335480,1745935838307,-470.0,0.00027507,2]
[359335481,1745935838316,-470.0,0.00027507,2]
[359335482,1745935838326,-470.0,0.00027507,2]
[359335483,1745935838335,-470.0,0.00027507,2]
[359335484,1745935838344,-1720.13,0.00027507,2]
[359335485,1745935838353,-523.05,0.00027507,2]
[359335486,1745935838363,-529.67,0.00027507,2]
[359335487,1745935838372,-483.68,0.00027507,2]
[359335488,1745935838382,-470.0,0.00027507,2]
[359335489,1745935838392,-572.51,0.00027507,2]
[359335490,1745935838402,-515.47,0.00027507,2]
[359335491,1745935838412,-470.0,0.00027507,2]
[359335492,1745935838422,-470.0,0.00027507,2]
[359335493,1745935838431,-545.10082957,0.00027507,2]
[359335494,1745935838441,-470.0,0.00027507,2]
[359335495,1745935838451,-6152.12,0.00027507,2]
[359335496,1745935838461,-470.0,0.00027507,2]